bitfinex/quotes_SOLUSD_20220228
["timestamp","ask_amount","ask_price","bid_price","bid_amount"]
[1646081795016,1.36498622,98.41,98.306,102.2]
[1646081795215,4.11177543,98.41,98.306,102.2]
[1646081795414,2.74678921,98.41,98.306,102.2]
[1646081795813,2.74678921,98.41,98.311,102.2]
[1646081797017,1.68068603,98.415,98.311,102.2]
[1646081801817,2.74678921,98.414,98.305,48.66044012]
[1646081803917,25.12279556,98.414,98.305,48.66044012]
[1646081804117,1.60508262,98.413,98.305,48.66044012]
[1646081804317,4.35187183,98.413,98.305,48.66044012]
[1646081804620,2.74678921,98.412,98.305,48.66044012]
[1646081806021,62.70578376,98.41,98.305,48.66044012]
[1646081806220,1.80762912,98.409,98.305,48.66044012]
[1646081806422,61.3,98.408,98.305,48.66044012]
[1646081806721,15.41492771,98.407,98.305,48.66044012]
[1646081806923,18.16171692,98.407,98.305,48.66044012]
[1646081807121,10.1056329,98.406,98.305,48.66044012]
[1646081807325,1.81308691,98.405,98.305,48.66044012]
[1646081807522,2.74678921,98.407,98.305,48.66044012]
[1646081807922,1.84887818,98.415,98.305,48.66044012]
[1646081808121,2.74678921,98.414,98.305,48.66044012]
[1646081808325,12.85214739,98.414,98.305,48.66044012]
[1646081808521,1.52790533,98.413,98.305,48.66044012]
[1646081808721,37.13482041,98.413,98.305,48.66044012]
[1646081808923,4.35333031,98.412,98.306,102.2]
[1646081809123,12.85214739,98.412,98.305,48.66044012]
[1646081809324,4.22767605,98.411,98.305,48.66044012]
[1646081809621,1.54524757,98.41,98.305,48.66044012]
[1646081809825,28.5747098,98.41,98.305,48.66044012]
[1646081810025,4.55293345,98.409,98.305,48.66044012]
[1646081810222,27.02946223,98.409,98.305,48.66044012]
[1646081810423,1.84527525,98.407,98.305,48.66044012]
[1646081810824,2.74678921,98.406,98.305,48.66044012]
[1646081811023,61.3,98.405,98.299,48.9829]
[1646081811225,1.45724595,98.404,98.299,48.9829]
[1646081811425,4.20403516,98.404,98.299,48.9829]
[1646081811626,1.41417515,98.402,98.299,48.9829]
[1646081812024,12.85722809,98.401,98.3,57.48487854]
[1646081812225,1.4251413,98.4,98.301,102.2]
[1646081812428,4.17193051,98.4,98.301,102.2]
[1646081817328,4.17193051,98.4,98.302,2.74678921]
[1646081817529,1.4251413,98.4,98.311,102.2]
[1646081818930,23.5484,98.403,98.311,102.2]
[1646081819230,1.50677133,98.418,98.311,102.2]
[1646081819432,12.46,98.45,98.311,102.2]
[1646081819433,1.86794234,98.444,98.313,102.2]
[1646081819630,23.4625,98.444,98.314,3.10109759]
[1646081819830,1.42347784,98.443,98.315,106.265]
[1646081820032,1.42347784,98.443,98.316,2.5125415]
[1646081820231,1.42347784,98.443,98.33,12.46]
[1646081820433,1.42347784,98.443,98.333,102.2]
[1646081820833,1.42347784,98.443,98.334,2.74678921]
[1646081821632,10.11043995,98.442,98.332,51.21703868]
[1646081821832,1.67452124,98.441,98.332,51.21703868]
[1646081822233,1.70773907,98.439,98.332,51.21703868]
[1646081822636,10.11043995,98.44,98.332,51.21703868]
[1646081822637,1.83558626,98.437,98.332,51.21703868]
[1646081823036,1.83558626,98.437,98.333,2.74678921]
[1646081823434,1.69098921,98.443,98.333,2.74678921]
[1646081823733,1.69098921,98.443,98.333,104.94678921]
[1646081824136,1.69098921,98.443,98.334,2.74678921]
[1646081824538,23.427,98.449,98.335,148.10483639]
[1646081824738,25.14885729,98.449,98.336,2.44876946]
[1646081824935,24.8367,98.466,98.351,102.2]
[1646081825139,39.71717426,98.487,98.353,102.2]
[1646081825336,24.083,98.487,98.354,2.86570508]
[1646081825536,23.7364,98.508,98.359,163.5]
[1646081825736,24.1185,98.522,98.352,88.35405713]
[1646081825737,15.62336093,98.516,98.38,59.03204256]
[1646081825936,15.62336093,98.516,98.391,102.2]
[1646081826137,10.09885281,98.519,98.391,102.2]
[1646081826336,10.09885281,98.519,98.392,2.4065993]
[1646081826537,10.09885281,98.525,98.393,102.2]
[1646081826736,10.09885281,98.525,98.395,102.2]
[1646081826937,10.09885281,98.525,98.396,2.62124734]
[1646081827136,10.09885281,98.525,98.412,59.26464854]
[1646081827336,1.68455914,98.529,98.413,102.2]
[1646081827536,1.39427743,98.528,98.414,2.35039642]
[1646081827739,1.48769555,98.527,98.414,2.35039642]
[1646081827937,4.062,98.553,98.415,2.74678921]
[1646081828141,15.59791285,98.554,98.43,12.46]
[1646081828438,1.42078521,98.525,98.43,12.46]
[1646081830445,1.42078521,98.525,98.431,102.2]
[1646081838368,23.696,98.524,98.431,101.7]
[1646081838567,1.37168084,98.523,98.431,101.7]
[1646081838967,23.696,98.554,98.433,101.7]
[1646081839169,112.7,98.567,98.435,163.0]
[1646081839370,112.7,98.567,98.451,163.0]
[1646081839567,112.7,98.567,98.462,48.73605878]
[1646081839768,1.42530144,98.588,98.471,101.7]
[1646081839969,1.42530144,98.588,98.473,101.7]
[1646081840167,1.42530144,98.588,98.474,2.91468318]
[1646081840571,1.42530144,98.588,98.474,2.74678921]
[1646081842872,1.42530144,98.588,98.474,5.04862066]
[1646081843273,1.42530144,98.588,98.475,2.74678921]
[1646081843572,46.8481,98.592,98.475,2.74678921]
[1646081844173,46.8481,98.592,98.489,102.2]
[1646081844375,46.8481,98.592,98.501,102.2]
[1646081844575,46.8481,98.592,98.511,102.2]
[1646081844773,1.4114088,98.622,98.511,102.2]
[1646081844975,1.70630424,98.639,98.513,105.21480795]
[1646081845173,1.70630424,98.639,98.523,102.2]
[1646081845375,1.70630424,98.639,98.524,2.25713354]
[1646081845875,1.70630424,98.639,98.524,5.00392275]
[1646081846074,1.70630424,98.639,98.525,2.74678921]
[1646081846276,1.70630424,98.639,98.54,12.46]
[1646081846674,20.55626635,98.639,98.54,12.46]
[1646081846876,1.74070594,98.638,98.54,12.46]
[1646081848777,1.74070594,98.638,98.541,102.2]
[1646081848977,1.74070594,98.638,98.541,104.94678921]
[1646081849176,1.74070594,98.638,98.542,2.74678921]
[1646081852779,1.74070594,98.638,98.544,102.2]
[1646081853183,1.74070594,98.638,98.545,2.74678921]
[1646081853483,1.74070594,98.638,98.561,44.00810912]
[1646081853682,1.6332008,98.648,98.562,102.2]
[1646081853980,1.57048647,98.672,98.562,128.55418921]
[1646081854181,1.57048647,98.672,98.564,102.2]
[1646081854580,1.57048647,98.672,98.565,2.74678921]
[1646081854980,46.3027,98.673,98.567,102.2]
[1646081855180,36.26394413,98.706,98.566,26.02703262]
[1646081855181,23.0995,98.706,98.581,102.2]
[1646081855380,4.054,98.721,98.599,208.54958882]
[1646081855381,1.84308986,98.72,98.599,208.54958882]
[1646081855579,49.034,98.73,98.611,102.2]
[1646081855784,1.57375374,98.729,98.611,102.2]
[1646081856082,1.57375374,98.729,98.612,61.3]
[1646081856280,1.3870708,98.748,98.629,163.5]
[1646081856481,1.3870708,98.748,98.641,102.2]
[1646081857080,1.3870708,98.748,98.642,2.74678921]
[1646081857882,1.3870708,98.748,98.64,12.46]
[1646081858684,1.3870708,98.748,98.641,102.2]
[1646081859182,1.3870708,98.748,98.64,38.48703262]
[1646081859183,1.3870708,98.748,98.64,27.403]
[1646081859782,24.2925,98.748,98.64,27.403]
[1646081859982,165.26959499,98.747,98.64,12.46]
[1646081860182,165.26959499,98.747,98.611,2.74678921]
[1646081860183,163.5,98.745,98.611,2.74678921]
[1646081860384,1.35134382,98.744,98.61,12.46]
[1646081860583,163.5,98.743,98.61,12.46]
[1646081860883,163.5,98.739,98.61,12.46]
[1646081861083,1.60212153,98.738,98.61,12.46]
[1646081861285,102.2,98.725,98.59,12.46]
[1646081861483,61.3,98.72,98.59,12.46]
[1646081861685,61.3,98.716,98.59,12.46]
[1646081861885,26.54183741,98.719,98.561,25.30050737]
[1646081861886,61.3,98.712,98.561,25.30050737]
[1646081862084,1.40158162,98.711,98.56,12.46]
[1646081862283,61.3,98.699,98.56,12.46]
[1646081862485,61.3,98.699,98.551,2.74678921]
[1646081862486,163.5,98.697,98.551,2.74678921]
[1646081862683,1.74185911,98.696,98.551,2.74678921]
[1646081862883,4.48864832,98.696,98.55,12.46]
[1646081863085,4.48864832,98.696,98.551,47.98619872]
[1646081863086,176.538788,98.695,98.551,47.98619872]
[1646081863283,163.5,98.679,98.55,15.20678921]
[1646081863484,1.6049093,98.678,98.55,15.20678921]
[1646081863886,1.6049093,98.678,98.541,23.2511]
[1646081863887,61.3,98.675,98.541,23.2511]
[1646081864085,61.3,98.675,98.531,25.30050737]
[1646081864086,61.3,98.667,98.531,25.30050737]
[1646081864385,1.47945501,98.665,98.541,56.80255967]
[1646081864585,61.3,98.661,98.531,25.30050737]
[1646081864788,61.3,98.657,98.53,12.46]
[1646081864991,103.96562644,98.656,98.53,12.46]
[1646081865194,1.63200961,98.655,98.53,12.46]
[1646081865490,4.37879882,98.655,98.53,12.46]
[1646081865690,2.74678921,98.654,98.53,63.53864309]
[1646081866089,2.74678921,98.654,98.53,88.83915046]
[1646081866291,12.46,98.65,98.53,88.83915046]
[1646081866493,1.36754828,98.649,98.53,88.83915046]
[1646081866694,1.36754828,98.649,98.531,2.74678921]
[1646081866892,1.5314497,98.658,98.531,104.94678921]
[1646081867093,1.5314497,98.658,98.532,25.30050737]
[1646081867292,1.5314497,98.658,98.532,28.04729658]
[1646081867293,61.3,98.657,98.532,28.04729658]
[1646081867491,1.58066488,98.656,98.532,28.04729658]
[1646081867692,1.58066488,98.656,98.533,25.30050737]
[1646081867892,1.58066488,98.656,98.533,28.04729658]
[1646081868091,1.58066488,98.656,98.534,2.74678921]
[1646081868792,103.78066488,98.656,98.534,2.74678921]
[1646081869093,24.8558,98.659,98.506,18.01688921]
[1646081869094,12.46,98.65,98.506,18.01688921]
[1646081869292,1.81789825,98.649,98.531,2.74678921]
[1646081869491,1.69512827,98.658,98.54,12.46]
[1646081869895,1.69512827,98.658,98.541,85.7651237]
[1646081870293,1.69512827,98.658,98.542,25.68868466]
[1646081870698,1.69512827,98.658,98.543,2.74678921]
[1646081870897,1.69512827,98.658,98.541,60.07643904]
[1646081872297,1.69512827,98.658,98.542,104.94678921]
[1646081873700,62.99512827,98.658,98.542,2.74678921]
[1646081873901,1.47929657,98.657,98.541,60.07643904]
[1646081874706,1.47929657,98.657,98.542,107.83075669]
[1646081874904,1.47929657,98.657,98.542,127.88868466]
[1646081875104,1.47929657,98.657,98.544,102.2]
[1646081875304,1.47929657,98.657,98.543,25.68868466]
[1646081875703,1.47929657,98.657,98.544,102.2]
[1646081875906,1.47929657,98.657,98.544,104.94678921]
[1646081876104,1.47929657,98.657,98.545,2.74678921]
[1646081876308,1.47929657,98.657,98.56,12.46]
[1646081877516,1.47929657,98.657,98.53,2.74678921]
[1646081878507,1.47929657,98.657,98.531,46.58144653]
[1646081878928,1.47929657,98.657,98.532,2.74678921]
[1646081880232,63.13546451,98.655,98.526,23.2221]
[1646081880429,1.50222764,98.654,98.526,23.2221]
[1646081880629,163.5,98.649,98.526,23.2221]
[1646081880829,174.0,98.647,98.509,102.2]
[1646081881033,1.55120309,98.646,98.514,54.36615044]
[1646081881230,1.55120309,98.646,98.515,102.2]
[1646081881429,1.55120309,98.646,98.52,12.46]
[1646081881629,24.5971,98.645,98.52,12.46]
[1646081881830,1.81153232,98.644,98.521,2.74678921]
[1646081882430,1.81153232,98.644,98.52,12.46]
[1646081883033,1.81153232,98.644,98.514,54.36615044]
[1646081883631,1.81153232,98.644,98.515,102.2]
[1646081883930,1.81153232,98.644,98.515,127.88868466]
[1646081884132,1.81153232,98.644,98.517,102.2]
[1646081884532,1.81153232,98.644,98.516,48.94368466]
[1646081884533,1.81153232,98.644,98.518,25.68868466]
[1646081884733,1.81153232,98.644,98.519,102.2]
[1646081884931,1.81153232,98.644,98.521,102.2]
[1646081885433,1.81153232,98.644,98.523,102.2]
[1646081885832,1.81153232,98.644,98.525,102.2]
[1646081886031,24.5971,98.645,98.541,102.2]
[1646081886233,1.44871952,98.682,98.551,102.2]
[1646081886433,1.44871952,98.682,98.553,102.2]
[1646081886634,1.66400167,98.714,98.555,104.53830119]
[1646081886835,1.66400167,98.714,98.554,49.1215]
[1646081886836,1.66400167,98.714,98.571,102.2]
[1646081887037,1.66400167,98.714,98.581,102.2]
[1646081887234,74.3248,98.737,98.591,102.2]
[1646081887235,4.054,98.734,98.591,102.2]
[1646081887436,4.054,98.734,98.601,102.2]
[1646081887633,1.73555597,98.736,98.609,102.2]
[1646081887834,24.13026739,98.754,98.621,102.2]
[1646081888038,1.61372008,98.753,98.623,102.2]
[1646081888235,24.31530977,98.753,98.624,2.88262058]
[1646081888434,1.61497178,98.752,98.624,2.88262058]
[1646081888633,24.31656147,98.752,98.624,2.88262058]
[1646081888833,24.42890451,98.751,98.624,2.88262058]
[1646081889033,1.67438278,98.75,98.624,2.88262058]
[1646081889233,24.37597247,98.75,98.624,2.88262058]
[1646081889638,1.69867858,98.748,98.62,12.46]
[1646081889834,61.3,98.746,98.6,12.46]
[1646081890034,1.5597335,98.743,98.58,12.46]
[1646081890235,1.5597335,98.743,98.572,2.91012005]
[1646081890236,1.5597335,98.743,98.59,12.46]
[1646081890434,5.61938832,98.754,98.601,102.2]
[1646081890636,5.61938832,98.754,98.596,61.3]
[1646081890637,5.61938832,98.754,98.61,12.46]
[1646081890835,13.03991363,98.754,98.611,102.2]
[1646081891036,1.39515332,98.752,98.611,102.2]
[1646081891235,1.39515332,98.752,98.612,2.90327696]
[1646081891834,1.39515332,98.752,98.613,102.2]
[1646081892035,1.39515332,98.752,98.62,2.65424695]
[1646081892237,1.39515332,98.752,98.631,102.2]
[1646081892434,1.39515332,98.752,98.632,2.85498135]
[1646081892638,1.39515332,98.752,98.634,102.2]
[1646081892835,1.39515332,98.752,98.635,2.73146021]
[1646081893035,1.39515332,98.752,98.636,102.2]
[1646081893236,1.39515332,98.752,98.641,102.2]
[1646081894838,1.58336347,98.769,98.642,3.06213801]
[1646081896240,136.2648,98.779,98.659,163.5]
[1646081896441,23.5648,98.779,98.672,55.87231324]
[1646081896640,47.7684,98.807,98.673,102.2]
[1646081896641,1.80051037,98.793,98.673,102.2]
[1646081896842,47.7684,98.807,98.688,61.3]
[1646081897041,47.7684,98.807,98.701,102.2]
[1646081897241,47.7684,98.807,98.703,102.2]
[1646081897443,47.2684,98.807,98.704,2.86814266]
[1646081898042,112.7,98.822,98.704,2.86814266]
[1646081898242,112.7,98.822,98.709,163.5]
[1646081898443,1.65635636,98.843,98.721,102.2]
[1646081898943,1.65635636,98.843,98.722,2.9514643]
[1646081899142,1.65635636,98.843,98.72,12.46]
[1646081899544,22.67405613,98.842,98.72,12.46]
[1646081899742,1.77569423,98.841,98.72,12.46]
[1646081900143,22.67405613,98.84,98.72,12.46]
[1646081900343,1.59667717,98.839,98.72,12.46]
[1646081902660,24.2707333,98.839,98.72,12.46]
[1646081902861,1.58572445,98.838,98.72,12.46]
[1646081903263,22.67405613,98.837,98.69,24.8199]
[1646081903463,12.46,98.83,98.69,12.46]
[1646081903661,5.60807422,98.829,98.673,24.3447]
[1646081903861,112.7,98.823,98.673,24.3447]
[1646081904060,12.46,98.82,98.673,24.3447]
[1646081904263,1.60360384,98.819,98.674,59.89140515]
[1646081904463,13.68516137,98.819,98.674,59.89140515]
[1646081904663,1.74969746,98.818,98.673,24.3447]
[1646081904990,36.99553488,98.818,98.67,12.46]
[1646081905262,58.02416276,98.817,98.67,12.46]
[1646081905463,1.74742885,98.816,98.67,12.46]
[1646081905663,25.3556512,98.816,98.671,48.59738077]
[1646081905863,15.15475695,98.815,98.671,48.59738077]
[1646081906066,1.78627543,98.813,98.671,48.59738077]
[1646081906264,1.60735379,98.809,98.671,48.59738077]
[1646081906864,15.27139859,98.809,98.671,48.59738077]
[1646081907064,1.61063443,98.808,98.671,48.59738077]
[1646081907268,1.61063443,98.808,98.672,22.5666]
[1646081908871,23.60822235,98.807,98.672,22.5666]
[1646081909068,103.6822486,98.806,98.672,22.5666]
[1646081909268,1.46160655,98.805,98.672,22.5666]
[1646081909468,25.0698289,98.805,98.672,22.5666]
[1646081909769,84.90822235,98.804,98.672,22.5666]
[1646081909972,1.38799744,98.803,98.672,22.5666]
[1646081910169,15.0762,98.813,98.672,22.5666]
[1646081910369,103.92906942,98.812,98.672,22.5666]
[1646081910569,1.57645916,98.811,98.672,22.5666]
[1646081911068,1.68474336,98.808,98.672,22.5666]
[1646081911471,163.5,98.806,98.672,22.5666]
[1646081911670,1.83054021,98.805,98.672,22.5666]
[1646081911870,163.5,98.804,98.672,22.5666]
[1646081912071,163.5,98.789,98.672,22.5666]
[1646081912272,1.43889921,98.786,98.672,25.31338921]
[1646081912673,1.43889921,98.786,98.673,102.2]
[1646081913078,1.43889921,98.786,98.674,2.74678921]
[1646081913274,1.43889921,98.786,98.674,26.58358593]
[1646081913672,1.43889921,98.786,98.675,2.74678921]
[1646081913872,1.43889921,98.786,98.675,104.94678921]
[1646081914072,1.43889921,98.786,98.675,2.74678921]
[1646081914276,1.43889921,98.786,98.676,2.74678921]
[1646081914475,1.43889921,98.786,98.69,12.46]
[1646081914774,1.43889921,98.786,98.691,2.74678921]
[1646081915775,45.8764,98.788,98.693,102.2]
[1646081915975,1.52143533,98.834,98.693,102.2]
[1646081916175,1.65932398,98.833,98.695,102.2]
[1646081916576,1.65932398,98.833,98.696,2.74678921]
[1646081916776,1.65932398,98.833,98.71,12.46]
[1646081916975,1.65932398,98.833,98.711,57.73908712]
[1646081917176,1.65932398,98.833,98.711,60.48587633]
[1646081917375,1.65932398,98.833,98.712,2.74678921]
[1646081918076,1.65932398,98.833,98.713,22.7556]
[1646081918477,1.65932398,98.833,98.714,2.74678921]
[1646081921280,1.65932398,98.833,98.714,104.94678921]
[1646081921681,1.65932398,98.833,98.715,2.74678921]
[1646081921980,1.65932398,98.833,98.73,12.46]
[1646081922579,1.15932398,98.833,98.731,2.74678921]
[1646081922784,47.9286,98.834,98.731,104.94678921]
[1646081923180,47.9286,98.834,98.732,27.56213927]
[1646081923381,47.9286,98.834,98.733,102.2]
[1646081923582,47.9286,98.834,98.734,2.47577579]
[1646081923786,47.4286,98.834,98.734,2.47577579]
[1646081923982,1.52897217,98.888,98.744,61.3]
[1646081924181,4.049,98.896,98.744,61.3]
[1646081924182,1.76964564,98.894,98.751,163.5]
[1646081924382,1.42069676,98.914,98.752,3.03473032]
[1646081924582,1.42069676,98.914,98.754,2.78534312]
[1646081924782,1.42069676,98.914,98.759,102.2]
[1646081924981,1.42069676,98.914,98.77,12.46]
[1646081925182,1.42069676,98.914,98.771,46.5114]
[1646081925384,1.42069676,98.914,98.772,102.2]
[1646081925582,61.3,98.909,98.771,49.25818921]
[1646081925784,1.36605967,98.908,98.772,2.74678921]
[1646081925985,1.36605967,98.908,98.771,46.5114]
[1646081926385,1.36605967,98.908,98.771,49.25818921]
[1646081926587,1.36605967,98.908,98.772,102.2]
[1646081926783,61.3,98.913,98.773,3.04250322]
[1646081926984,1.59414012,98.912,98.773,2.74678921]
[1646081927383,1.59414012,98.912,98.774,2.74678921]
[1646081927600,163.5,98.909,98.774,2.74678921]
[1646081927800,1.85249261,98.908,98.774,2.74678921]
[1646081928403,1.85249261,98.908,98.774,28.14020593]
[1646081928604,1.78193192,98.914,98.775,118.46961208]
[1646081928804,1.78193192,98.914,98.79,12.46]
[1646081929005,1.78193192,98.914,98.792,102.2]
[1646081929406,1.78193192,98.914,98.791,74.86254746]
[1646081929807,1.78193192,98.914,98.792,0.6111]
[1646081931007,0.00830047,98.846,98.792,102.8111]
[1646081931208,0.00830047,98.846,98.794,102.2]
[1646081931606,0.00830047,98.846,98.796,102.2]
[1646081931807,0.00830047,98.846,98.81,12.46]
[1646081932209,23.0396,99.008,98.812,102.2]
[1646081932409,1.16,98.92,98.813,2.40201344]
[1646081932608,1.16,98.92,98.822,46.35130406]
[1646081932808,1.16,98.92,98.841,102.2]
[1646081933007,1.16,98.92,98.83,12.46]
[1646081933008,1.16,98.92,98.852,58.88598359]
[1646081933210,1.16,98.92,98.86,12.46]
[1646081933708,1.16,98.92,98.86,15.20678921]
[1646081933908,1.16,98.92,98.861,2.79642915]
[1646081934207,1.16,98.92,98.861,5.54321836]
[1646081934807,45.7392,98.995,98.871,61.3]
[1646081935008,45.2392,98.995,98.88,12.46]
[1646081935209,43.5792,98.995,98.891,102.2]
[1646081935409,1.85586878,99.021,98.9,114.66]
[1646081935814,1.85586878,99.021,98.902,102.2]
[1646081936111,1.85586878,99.021,98.903,2.83075092]
[1646081936311,1.85586878,99.021,98.905,2.89923935]
[1646081936512,1.85586878,99.021,98.92,12.46]
[1646081936711,22.6544,99.022,98.92,12.46]
[1646081936712,1.48627232,99.008,98.92,12.46]
[1646081937915,1.81556703,99.024,98.921,2.74678921]
[1646081938114,1.45099412,99.036,98.922,102.2]
[1646081938316,45.8033,99.042,98.931,45.16646959]
[1646081938515,0.09728026,98.994,98.94,12.46]
[1646081939516,0.09728026,98.994,98.92,27.5831]
[1646081940118,0.09728026,98.994,98.92,12.46]
[1646081940517,2.74678921,98.993,98.89,12.46]
[1646081940720,2.74678921,98.993,98.87,12.46]
[1646081940920,61.3,98.992,98.87,12.46]
[1646081941118,1.51197081,98.991,98.87,12.46]
[1646081941318,61.3,98.99,98.87,12.46]
[1646081941518,163.5,98.988,98.87,12.46]
[1646081941718,1.43091158,98.987,98.832,49.22008516]
[1646081941919,163.5,98.979,98.83,12.46]
[1646081942118,1.77479043,98.978,98.83,12.46]
[1646081942318,61.3,98.977,98.83,12.46]
[1646081942518,112.7,98.97,98.83,12.46]
[1646081942818,103.85239422,98.969,98.83,12.46]
[1646081943020,102.2,98.967,98.83,12.46]
[1646081943218,102.2,98.957,98.817,4.043]
[1646081943421,14.51376309,98.968,79.0,20.0]
[1646081943422,1.74846064,98.959,98.81,12.46]
[1646081943619,1.74846064,98.959,98.82,12.46]
[1646081944021,2.74678921,98.958,98.82,12.46]
[1646081944220,2.74678921,98.958,98.821,2.74678921]
[1646081944822,37.2270942,98.957,98.82,12.46]
[1646081945022,1.62633424,98.956,98.81,12.46]
[1646081945223,1.71087758,98.954,98.799,2.92055494]
[1646081945423,1.71087758,98.954,98.81,12.46]
[1646081945623,1.71087758,98.954,98.82,12.46]
[1646081945825,2.74678921,98.953,98.82,12.46]
[1646081946027,17.24227758,98.954,98.82,12.46]
[1646081946251,1.71033898,98.953,98.821,2.74678921]
[1646081946428,1.71033898,98.953,98.821,5.12336585]
[1646081946628,1.71033898,98.953,98.821,3.04205996]
[1646081946827,2.74678921,98.952,98.82,12.46]
[1646081947228,1.71033898,98.953,98.821,2.74678921]
[1646081947427,2.74678921,98.952,98.821,5.74316831]
[1646081947627,1.71033898,98.953,98.821,2.74678921]
[1646081947827,1.71033898,98.953,98.822,2.74678921]
[1646081948027,1.71033898,98.953,98.822,6.79178921]
[1646081948427,2.74678921,98.952,98.823,2.74678921]
[1646081948830,1.71033898,98.953,98.823,2.74678921]
[1646081949030,2.74678921,98.952,98.823,2.74678921]
[1646081949429,61.3,98.953,98.823,2.74678921]
[1646081949631,4.56920413,98.952,98.823,2.74678921]
[1646081950032,1.82241492,98.952,98.823,2.74678921]
[1646081950232,2.74678921,98.951,98.823,2.74678921]
[1646081950434,1.82241492,98.952,98.823,2.74678921]
[1646081950634,1.82241492,98.952,98.824,4.045]
[1646081951034,2.74678921,98.951,98.825,2.74678921]
[1646081951237,2.74678921,98.951,98.83,12.46]
[1646081951434,1.82241492,98.952,98.83,12.46]
[1646081951635,15.5314,98.954,98.83,12.46]
[1646081951636,1.82405219,98.953,98.831,45.76312594]
[1646081951834,1.82405219,98.953,98.832,2.74672774]
[1646081952035,1.82405219,98.953,98.832,5.49351695]
[1646081952435,1.82405219,98.953,98.833,2.74678921]
[1646081952834,1.82405219,98.953,98.834,102.2]
[1646081953035,1.82405219,98.953,98.835,2.87964345]
[1646081953235,1.82405219,98.953,98.835,2.74678921]
[1646081953436,23.3208,98.955,98.837,2.47693312]
[1646081953634,23.3208,98.955,98.85,114.66]
[1646081953854,1.52503804,98.984,98.859,61.3]
[1646081954052,6.0,98.997,98.871,102.2]
[1646081954253,6.0,98.997,98.873,102.2]
[1646081954453,6.0,98.997,98.874,2.25578241]
[1646081954652,6.0,98.997,98.875,4.043]
[1646081954852,6.0,98.997,98.892,2.64933611]
[1646081955057,6.0,98.997,98.893,102.2]
[1646081955252,6.0,98.997,98.911,49.28468307]
[1646081955452,115.125,99.0,98.92,12.46]
[1646081955654,115.125,99.0,98.925,61.3]
[1646081955854,115.125,99.0,98.93,102.2]
[1646081956054,115.125,99.0,98.941,161.80744413]
[1646081956253,115.125,99.0,98.942,4.041]
[1646081956455,115.125,99.0,98.943,102.2]
[1646081956653,0.84487272,99.079,98.949,163.5]
[1646081956854,115.1008,99.009,98.961,163.5]
[1646081957054,0.84487272,99.079,98.963,130.0]
[1646081957254,0.84487272,99.079,98.966,102.2]
[1646081957454,4.038,99.135,98.981,280.77256637]
[1646081957654,4.038,99.135,99.02,155.77]
[1646081957854,0.50664136,99.17,98.981,280.77256637]
[1646081957855,4.038,99.139,99.031,102.2]
[1646081958054,4.037,99.169,99.041,102.2]
[1646081958255,0.50664136,99.17,99.05,12.46]
[1646081958854,0.50664136,99.17,99.051,4.035]
[1646081959058,0.50664136,99.17,99.051,23.00647325]
[1646081959255,0.50664136,99.17,99.051,48.00208677]
[1646081959555,0.50664136,99.17,99.053,102.2]
[1646081959757,0.50664136,99.17,99.06,155.77]
[1646081959955,0.50664136,99.17,99.071,44.45404866]
[1646081960355,2.74678921,99.169,99.072,104.9287068]
[1646081960555,0.50664136,99.17,99.072,2.7287068]
[1646081960754,0.50664136,99.17,99.073,2.74678921]
[1646081960955,0.50664136,99.17,99.074,4.035]
[1646081961356,0.50664136,99.17,99.075,2.74678921]
[1646081961558,0.50664136,99.17,99.09,12.46]
[1646081962158,0.50664136,99.17,99.091,2.74678921]
[1646081962356,0.50664136,99.17,99.091,5.82978161]
[1646081962558,0.50664136,99.17,99.091,104.94678921]
[1646081962757,0.50664136,99.17,99.09,12.46]
[1646081962758,0.50664136,99.17,99.099,163.5]
[1646081962957,4.136e-05,99.17,99.111,102.2]
[1646081963157,4.136e-05,99.17,99.112,2.36491476]
[1646081963358,4.136e-05,99.17,99.119,163.5]
[1646081963659,4.136e-05,99.17,99.132,3.01808994]
[1646081963859,4.136e-05,99.17,99.141,101.2]
[1646081964061,4.136e-05,99.17,99.142,2.36446998]
[1646081964259,4.136e-05,99.17,99.143,101.2]